Workbook

Sheet Sheet1
A1: 2023年泉州市泉港区公办学校公开招聘新任教师笔试成绩公示表
A2: 招聘岗位 | B2: 准考证号 | C2: 性别 | D2: 教育综合 | E2: 专业知识 | F2: 笔试原始成绩 | G2: 加分 | H2: 折算百分制后成绩 | I2: 位次
A3: 中学语文教师 | B3: 653123121398 | C3: 女 | D3: 114.0 | E3: 98.5 | F3: 104.7 | H3: =F3/1.5 -> 69.80 | I3: 1
A4: 中学语文教师 | B4: 653123120847 | C4: 女 | D4: 114.5 | E4: 95.5 | F4: 103.1 | H4: =F4/1.5 -> 68.73 | I4: 2
A5: 中学语文教师 | B5: 653123120889 | C5: 女 | D5: 109.5 | E5: 95.0 | F5: 100.8 | H5: 67.20 | I5: 3
A6: 中学语文教师 | B6: 653123121059 | C6: 女 | D6: 86.00 | E6: 100.0 | F6: 94.4 | H6: 62.93 | I6: 4
A7: 中学语文教师 | B7: 653123121636 | C7: 女 | D7: 87.5 | E7: 86.0 | F7: 86.6 | H7: 57.73 | I7: 5
A8: 中学语文教师 | B8: 653123120649 | C8: 女 | D8: 96.5 | E8: 71.5 | F8: 81.5 | H8: 54.33 | I8: 6
A9: 中学语文教师 | B9: 653123121027 | C9: 女 | D9: 93.5 | E9: 63.0 | F9: 75.2 | H9: 50.13 | I9: 7
A10: 中学语文教师 | B10: 653123120911 | C10: 女 | D10: 81.5 | E10: 70.5 | F10: 74.9 | H10: 49.93 | I10: 8
A11: 中学数学教师 | B11: 653223121679 | C11: 女 | D11: 116.0 | E11: 100.0 | F11: 106.4 | H11: =F11/1.5 -> 70.93 | I11: 1
A12: 中学数学教师 | B12: 653223122130 | C12: 女 | D12: 106.5 | E12: 105.5 | F12: 105.9 | H12: =F12/1.5 -> 70.60 | I12: 2
A13: 中学数学教师 | B13: 653223122372 | C13: 男 | D13: 117.0 | E13: 89.0 | F13: 100.2 | H13: =F13/1.5 -> 66.80 | I13: 3
A14: 中学数学教师 | B14: 653223121972 | C14: 女 | D14: 86.0 | E14: 106.5 | F14: 98.3 | H14: =F14/1.5 -> 65.53 | I14: 4
A15: 中学数学教师 | B15: 653223122029 | C15: 女 | D15: 100.5 | E15: 88.5 | F15: 93.3 | H15: =F15/1.5 -> 62.20 | I15: 5
A16: 中学数学教师 | B16: 653223122410 | C16: 男 | D16: 104.5 | E16: 82.5 | F16: 91.3 | H16: =F16/1.5 -> 60.87 | I16: 6
A17: 中学数学教师 | B17: 653223121720 | C17: 女 | D17: 81.5 | E17: 89.5 | F17: 86.3 | H17: =F17/1.5 -> 57.53 | I17: 7
A18: 中学数学教师 | B18: 653223121749 | C18: 女 | D18: 88.5 | E18: 84.5 | F18: 86.1 | H18: =F18/1.5 -> 57.40 | I18: 9
A19: 中学数学教师 | B19: 653223122259 | C19: 女 | D19: 94.5 | E19: 80.5 | F19: 86.1 | H19: =F19/1.5 -> 57.40 | I19: 8
A20: 中学数学教师 | B20: 653223121988 | C20: 女 | D20: 93.0 | E20: 75.5 | F20: 82.5 | H20: =F20/1.5 -> 55.00 | I20: 10
A21: 中学数学教师 | B21: 653223122111 | C21: 男 | D21: 101.0 | E21: 70.0 | F21: 82.4 | H21: 54.93 | I21: 11
A22: 中学数学教师 | B22: 653223122019 | C22: 女 | D22: 94.5 | E22: 74.0 | F22: 82.2 | H22: 54.80 | I22: 12
A23: 中学数学教师 | B23: 653223121856 | C23: 女 | D23: 89.0 | E23: 76.5 | F23: 81.5 | H23: 54.33 | I23: 13
A24: 中学数学教师 | B24: 653223122025 | C24: 女 | D24: 109.5 | E24: 62.0 | F24: 81.0 | H24: 54.00 | I24: 14
A25: 中学数学教师 | B25: 653223121827 | C25: 女 | D25: 77.5 | E25: 80.0 | F25: 79.0 | H25: 52.67 | I25: 15
A26: 中学数学教师 | B26: 653223121883 | C26: 女 | D26: 69.0 | E26: 83.5 | F26: 77.7 | H26: 51.80 | I26: 16
A27: 中学数学教师 | B27: 653223121830 | C27: 女 | D27: 75.5 | E27: 74.0 | F27: 74.6 | H27: 49.73 | I27: 17
A28: 中学数学教师 | B28: 653223122017 | C28: 男 | D28: 90.0 | E28: 58.5 | F28: 71.1 | H28: 47.40 | I28: 18
A29: 中学英语教师 | B29: 653323123112 | C29: 女 | D29: 115.0 | E29: 124.0 | F29: 120.4 | H29: =F29/1.5 -> 80.27 | I29: 1
A30: 中学英语教师 | B30: 653323123010 | C30: 女 | D30: 126.0 | E30: 110.5 | F30: 116.7 | H30: 77.80 | I30: 2
A31: 中学英语教师 | B31: 653323123772 | C31: 女 | D31: 112.5 | E31: 116.5 | F31: 114.9 | H31: 76.60 | I31: 3
A32: 中学英语教师 | B32: 653323123179 | C32: 女 | D32: 118.5 | E32: 110.0 | F32: 113.4 | H32: 75.60 | I32: 4
A33: 中学英语教师 | B33: 653323124235 | C33: 女 | D33: 113.5 | E33: 112.0 | F33: 112.6 | H33: 75.07 | I33: 5
A34: 中学英语教师 | B34: 653323123042 | C34: 女 | D34: 114.5 | E34: 109.5 | F34: 111.5 | H34: 74.33 | I34: 6
A35: 中学英语教师 | B35: 653323123548 | C35: 女 | D35: 114.5 | E35: 106.5 | F35: 109.7 | H35: 73.13 | I35: 7
A36: 中学英语教师 | B36: 653323124083 | C36: 女 | D36: 110.0 | E36: 109.0 | F36: 109.4 | H36: 72.93 | I36: 8
A37: 中学英语教师 | B37: 653323122856 | C37: 女 | D37: 124.5 | E37: 98.0 | F37: 108.6 | H37: 72.40 | I37: 9
A38: 中学英语教师 | B38: 653323124542 | C38: 女 | D38: 116.5 | E38: 103.0 | F38: 108.4 | H38: 72.27 | I38: 10
A39: 中学英语教师 | B39: 653323123130 | C39: 女 | D39: 111.0 | E39: 103.5 | F39: 106.5 | H39: 71.00 | I39: 11
A40: 中学英语教师 | B40: 653323123490 | C40: 女 | D40: 109.0 | E40: 103.5 | F40: 105.7 | H40: 70.47 | I40: 12
A41: 中学英语教师 | B41: 653323122820 | C41: 女 | D41: 108.5 | E41: 103.5 | F41: 105.5 | H41: 70.33 | I41: 13
A42: 中学英语教师 | B42: 653323123467 | C42: 女 | D42: 113.0 | E42: 99.5 | F42: 104.9 | H42: 69.93 | I42: 14
A43: 中学英语教师 | B43: 653323122718 | C43: 女 | D43: 100.0 | E43: 106.0 | F43: 103.6 | H43: 69.07 | I43: 15
A44: 中学英语教师 | B44: 653323123476 | C44: 女 | D44: 115.0 | E44: 94.0 | F44: 102.4 | H44: 68.27 | I44: 16
A45: 中学英语教师 | B45: 653323123460 | C45: 女 | D45: 118.0 | E45: 92.0 | F45: 102.4 | H45: 68.27 | I45: 17
A46: 中学英语教师 | B46: 653323123673 | C46: 女 | D46: 93.0 | E46: 95.5 | F46: 94.5 | G46: 5 | H46: 68.00 | I46: 18
A47: 中学英语教师 | B47: 653323124319 | C47: 女 | D47: 100.0 | E47: 101.5 | F47: 100.9 | H47: =F47/1.5 -> 67.27 | I47: 19
A48: 中学英语教师 | B48: 653323124599 | C48: 女 | D48: 123.0 | E48: 85.0 | F48: 100.2 | H48: 66.80 | I48: 20
A49: 中学英语教师 | B49: 653323123324 | C49: 女 | D49: 99.5 | E49: 99.0 | F49: 99.2 | H49: 66.13 | I49: 21
A50: 中学英语教师 | B50: 653323123813 | C50: 女 | D50: 105.0 | E50: 94.5 | F50: 98.7 | H50: 65.80 | I50: 22
A51: 中学英语教师 | B51: 653323124563 | C51: 女 | D51: 111.5 | E51: 90.0 | F51: 98.6 | H51: 65.73 | I51: 23
A52: 中学英语教师 | B52: 653323123381 | C52: 女 | D52: 102.0 | E52: 94.0 | F52: 97.2 | H52: 64.80 | I52: 24
A53: 中学英语教师 | B53: 653323123586 | C53: 女 | D53: 86.5 | E53: 104.0 | F53: 97.0 | H53: 64.67 | I53: 25
A54: 中学英语教师 | B54: 653323124125 | C54: 女 | D54: 98.5 | E54: 93.5 | F54: 95.5 | H54: 63.67 | I54: 26
A55: 中学英语教师 | B55: 653323124037 | C55: 女 | D55: 112.0 | E55: 84.5 | F55: 95.5 | H55: 63.67 | I55: 27
A56: 中学英语教师 | B56: 653323122548 | C56: 女 | D56: 111.0 | E56: 84.5 | F56: 95.1 | H56: 63.40 | I56: 28
A57: 中学英语教师 | B57: 653323123306 | C57: 女 | D57: 103.0 | E57: 86.0 | F57: 92.8 | H57: 61.87 | I57: 29
A58: 中学英语教师 | B58: 653323124277 | C58: 女 | D58: 92.5 | E58: 91.0 | F58: 91.6 | H58: 61.07 | I58: 30
A59: 中学英语教师 | B59: 653323123279 | C59: 女 | D59: 90.5 | E59: 88.0 | F59: 89.0 | H59: 59.33 | I59: 31
A60: 中学英语教师 | B60: 653323124241 | C60: 女 | D60: 99.5 | E60: 80.0 | F60: 87.8 | H60: 58.53 | I60: 32
A61: 中学英语教师 | B61: 653323124336 | C61: 女 | D61: 80.0 | E61: 88.5 | F61: 85.1 | H61: =F61/1.5 -> 56.73 | I61: 33
A62: 中学英语教师 | B62: 653323123729 | C62: 女 | D62: 94.5 | E62: 78.5 | F62: 84.9 | H62: 56.60 | I62: 34
A63: 中学英语教师 | B63: 653323124339 | C63: 女 | D63: 92.0 | E63: 79.5 | F63: 84.5 | H63: 56.33 | I63: 35
A64: 中学英语教师 | B64: 653323124000 | C64: 女 | D64: 79.5 | E64: 84.5 | F64: 82.5 | H64: 55.00 | I64: 36
A65: 中学英语教师 | B65: 653323123615 | C65: 女 | D65: 81.5 | E65: 81.5 | F65: 81.5 | H65: 54.33 | I65: 37
A66: 中学英语教师 | B66: 653323124476 | C66: 女 | D66: 84.5 | E66: 79.0 | F66: 81.2 | H66: 54.13 | I66: 38
A67: 中学英语教师 | B67: 653323123703 | C67: 女 | D67: 86.5 | E67: 76.5 | F67: 80.5 | H67: 53.67 | I67: 39
A68: 中学英语教师 | B68: 653323123724 | C68: 女 | D68: 76.5 | E68: 82.0 | F68: 79.8 | H68: 53.20 | I68: 40
A69: 中学英语教师 | B69: 653323124349 | C69: 女 | D69: 95.5 | E69: 69.0 | F69: 79.6 | H69: 53.07 | I69: 41
A70: 中学英语教师 | B70: 653323123943 | C70: 女 | D70: 66.5 | E70: 88.0 | F70: 79.4 | H70: 52.93 | I70: 42
A71: 中学英语教师 | B71: 653323123689 | C71: 女 | D71: 74.0 | E71: 83.0 | F71: 79.4 | H71: 52.93 | I71: 43
A72: 中学英语教师 | B72: 653323123459 | C72: 女 | D72: 70.5 | E72: 82.0 | F72: 77.4 | H72: 51.60 | I72: 44
A73: 中学英语教师 | B73: 653323122867 | C73: 女 | D73: 90.5 | E73: 68.0 | F73: 77.0 | H73: 51.33 | I73: 45
A74: 中学英语教师 | B74: 653323122633 | C74: 女 | D74: 69.5 | E74: 81.5 | F74: 76.7 | H74: 51.13 | I74: 46
A75: 中学英语教师 | B75: 653323124248 | C75: 女 | D75: 73.5 | E75: 77.5 | F75: 75.9 | H75: 50.60 | I75: 47
A76: 中学英语教师 | B76: 653323123975 | C76: 女 | D76: 74.5 | E76: 73.5 | F76: 73.9 | H76: 49.27 | I76: 48
A77: 中学英语教师 | B77: 653323123942 | C77: 女 | D77: 91.0 | E77: 61.0 | F77: 73.0 | H77: 48.67 | I77: 49
A78: 中学英语教师 | B78: 653323123896 | C78: 女 | D78: 81.5 | E78: 66.5 | F78: 72.5 | H78: 48.33 | I78: 50
A79: 中学英语教师 | B79: 653323124029 | C79: 女 | D79: 64.5 | E79: 71.5 | F79: 68.7 | H79: 45.80 | I79: 51
A80: 中学物理教师 | B80: 653423124755 | C80: 女 | D80: 102.0 | E80: 71.0 | F80: 83.4 | H80: 55.60 | I80: 1
A81: 中学物理教师 | B81: 653423124958 | C81: 男 | D81: 83.5 | E81: 79.0 | F81: 80.8 | H81: 53.87 | I81: 2
A82: 中学化学教师 | B82: 653523125414 | C82: 女 | D82: 118.0 | E82: 95.5 | F82: 104.5 | H82: =F82/1.5 -> 69.67 | I82: 1
A83: 中学化学教师 | B83: 653523125425 | C83: 女 | D83: 109.0 | E83: 90.5 | F83: 97.9 | H83: 65.27 | I83: 2
A84: 中学化学教师 | B84: 653523125411 | C84: 女 | D84: 110.0 | E84: 77.5 | F84: 90.5 | H84: 60.33 | I84: 3
A85: 中学化学教师 | B85: 653523125347 | C85: 女 | D85: 108.5 | E85: 57.5 | F85: 77.9 | H85: 51.93 | I85: 4
A86: 中学化学教师 | B86: 653523125300 | C86: 女 | D86: 100.5 | E86: 61.0 | F86: 76.8 | H86: 51.20 | I86: 5
A87: 中学化学教师 | B87: 653523125423 | C87: 女 | D87: 82.5 | E87: 57.5 | F87: 67.5 | H87: 45.00 | I87: 6
A88: 中学化学教师 | B88: 653523125249 | C88: 女 | D88: 68.5 | E88: 62.0 | F88: 64.6 | H88: 43.07 | I88: 7
A89: 中学化学教师 | B89: 653523125203 | C89: 男 | D89: 84.0 | E89: 46.0 | F89: 61.2 | H89: 40.80 | I89: 8
A90: 中学化学教师 | B90: 653523125067 | C90: 女 | D90: 0.0 | E90: 41.0 | F90: 24.6 | H90: 16.40 | I90: 9
A91: 中学生物教师 | B91: 653623125724 | C91: 女 | D91: 106.0 | E91: 116.0 | F91: 112.0 | H91: =F91/1.5 -> 74.67 | I91: 1
A92: 中学生物教师 | B92: 653623125594 | C92: 女 | D92: 113.5 | E92: 93.0 | F92: 101.2 | H92: 67.47 | I92: 2
A93: 中学生物教师 | B93: 653623125691 | C93: 女 | D93: 110.0 | E93: 92.0 | F93: 99.2 | H93: 66.13 | I93: 3
A94: 中学生物教师 | B94: 653623125756 | C94: 女 | D94: 98.0 | E94: 89.5 | F94: 92.9 | H94: 61.93 | I94: 4
A95: 中学生物教师 | B95: 653623125728 | C95: 女 | D95: 88.5 | E95: 81.0 | F95: 84.0 | H95: 56.00 | I95: 5
A96: 中学生物教师 | B96: 653623125834 | C96: 男 | D96: 94.0 | E96: 75.0 | F96: 82.6 | H96: 55.07 | I96: 6
A97: 中学生物教师 | B97: 653623125802 | C97: 女 | D97: 66.0 | E97: 71.5 | F97: 69.3 | H97: 46.20 | I97: 7
A98: 中学思想政治(道德与法治)教师 | B98: 653723125943 | C98: 女 | D98: 97.0 | E98: 92.5 | F98: 94.3 | H98: 62.87 | I98: 1
A99: 中学思想政治(道德与法治)教师 | B99: 653723126144 | C99: 女 | D99: 89.0 | E99: 96.5 | F99: 93.5 | H99: 62.33 | I99: 2
A100: 中学思想政治(道德与法治)教师 | B100: 653723126124 | C100: 女 | D100: 83.0 | E100: 97.0 | F100: 91.4 | H100: 60.93 | I100: 3
A101: 中学思想政治(道德与法治)教师 | B101: 653723125876 | C101: 女 | D101: 86.0 | E101: 92.5 | F101: 89.9 | H101: 59.93 | I101: 4
A102: 中学思想政治(道德与法治)教师 | B102: 653723125905 | C102: 女 | D102: 85.0 | E102: 88.5 | F102: 87.1 | H102: 58.07 | I102: 5
A103: 中学地理教师 | B103: 653923126829 | C103: 女 | D103: 111.0 | E103: 99.5 | F103: 104.1 | H103: 69.40 | I103: 1
A104: 中学地理教师 | B104: 653923126688 | C104: 女 | D104: 118.0 | E104: 91.5 | F104: 102.1 | H104: 68.07 | I104: 2
A105: 中学地理教师 | B105: 653923126667 | C105: 女 | D105: 92.5 | E105: 95.5 | F105: 94.3 | H105: 62.87 | I105: 3
A106: 中学体育与健康教师 | B106: 654523127964 | C106: 男 | D106: 114.5 | E106: 92.0 | F106: 101.0 | H106: =F106/1.5 -> 67.33 | I106: 1
A107: 中学体育与健康教师 | B107: 654523128134 | C107: 男 | D107: 104.5 | E107: 97.0 | F107: 100.0 | H107: 66.67 | I107: 2
A108: 中学体育与健康教师 | B108: 654523127872 | C108: 男 | D108: 102.0 | E108: 93.5 | F108: 96.9 | H108: 64.60 | I108: 3
A109: 中学体育与健康教师 | B109: 654523127773 | C109: 女 | D109: 103.5 | E109: 80.0 | F109: 89.4 | H109: 59.60 | I109: 4
A110: 中学体育与健康教师 | B110: 654523128281 | C110: 女 | D110: 88.5 | E110: 83.0 | F110: 85.2 | H110: 56.80 | I110: 5
A111: 中学体育与健康教师 | B111: 654523128534 | C111: 男 | D111: 79.5 | E111: 83.5 | F111: 81.9 | H111: 54.60 | I111: 6
A112: 中学体育与健康教师 | B112: 654523128099 | C112: 男 | D112: 68.5 | E112: 79.0 | F112: 74.8 | H112: 49.87 | I112: 7
A113: 中学体育与健康教师 | B113: 654523128145 | C113: 男 | D113: 66.0 | E113: 76.0 | F113: 72.0 | H113: 48.00 | I113: 8
A114: 中学体育与健康教师 | B114: 654523128197 | C114: 女 | D114: 68.5 | E114: 73.5 | F114: 71.5 | H114: 47.67 | I114: 9
A115: 中学体育与健康教师 | B115: 654523128085 | C115: 男 | D115: 48.5 | E115: 63.0 | F115: 57.2 | H115: 38.13 | I115: 10
A116: 中学体育与健康教师 | B116: 654523128576 | C116: 女 | D116: 0.0 | E116: 60.0 | F116: 36.0 | H116: 24.00 | I116: 11
A117: 中学体育与健康教师 | B117: 654523128115 | C117: 男 | D117: 0.0 | E117: 57.0 | F117: 34.2 | H117: 22.80 | I117: 12
A118: 中学心理健康教育教师 | B118: 654623128631 | C118: 女 | D118: 120.0 | E118: 115.0 | F118: 117.0 | H118: =F118/1.5 -> 78.00 | I118: 1
A119: 中学心理健康教育教师 | B119: 654623128735 | C119: 女 | D119: 115.5 | E119: 112.0 | F119: 113.4 | H119: 75.60 | I119: 2
A120: 中学心理健康教育教师 | B120: 654623128728 | C120: 女 | D120: 120.0 | E120: 109.0 | F120: 113.4 | H120: 75.60 | I120: 3
A121: 中学心理健康教育教师 | B121: 654623128600 | C121: 女 | D121: 110.0 | E121: 104.5 | F121: 106.7 | H121: 71.13 | I121: 4
A122: 中学心理健康教育教师 | B122: 654623128619 | C122: 女 | D122: 121.0 | E122: 95.0 | F122: 105.4 | H122: 70.27 | I122: 5
A123: 中学心理健康教育教师 | B123: 654623128724 | C123: 女 | D123: 114.0 | E123: 95.5 | F123: 102.9 | H123: 68.60 | I123: 6
A124: 中学心理健康教育教师 | B124: 654623128743 | C124: 女 | D124: 104.5 | E124: 91.5 | F124: 96.7 | H124: 64.47 | I124: 7
A125: 中学心理健康教育教师 | B125: 654623128627 | C125: 女 | D125: 74.0 | E125: 98.0 | F125: 88.4 | H125: 58.93 | I125: 8
A126: 中学心理健康教育教师 | B126: 654623128699 | C126: 女 | D126: 101.0 | E126: 73.0 | F126: 84.2 | H126: 56.13 | I126: 9
A127: 中学心理健康教育教师 | B127: 654623128694 | C127: 女 | D127: 97.0 | E127: 74.5 | F127: 83.5 | H127: 55.67 | I127: 10
A128: 中学心理健康教育教师 | B128: 654623128691 | C128: 女 | D128: 91.0 | E128: 73.0 | F128: 80.2 | H128: 53.47 | I128: 11
A129: 中学心理健康教育教师 | B129: 654623128736 | C129: 女 | D129: 68.0 | E129: 75.5 | F129: 72.5 | H129: 48.33 | I129: 12
A130: 小学语文教师 | B130: 651123107712 | C130: 女 | D130: 116.0 | E130: 117.5 | F130: 116.9 | H130: =F130/1.5 -> 77.93 | I130: 1
A131: 小学语文教师 | B131: 651123106415 | C131: 女 | D131: 115.5 | E131: 107.5 | F131: 110.7 | H131: 73.80 | I131: 2
A132: 小学语文教师 | B132: 651123108829 | C132: 女 | D132: 110.0 | E132: 109.0 | F132: 109.4 | H132: 72.93 | I132: 3
A133: 小学语文教师 | B133: 651123108387 | C133: 女 | D133: 108.0 | E133: 107.5 | F133: 107.7 | H133: 71.80 | I133: 4
A134: 小学语文教师 | B134: 651123109577 | C134: 女 | D134: 114.5 | E134: 100.5 | F134: 106.1 | H134: 70.73 | I134: 5
A135: 小学语文教师 | B135: 651123109423 | C135: 女 | D135: 115.5 | E135: 99.5 | F135: 105.9 | H135: 70.60 | I135: 6
A136: 小学语文教师 | B136: 651123109564 | C136: 女 | D136: 89.0 | E136: 112.0 | F136: 102.8 | H136: 68.53 | I136: 7
A137: 小学语文教师 | B137: 651123109063 | C137: 女 | D137: 105.0 | E137: 97.5 | F137: 100.5 | H137: 67.00 | I137: 8
A138: 小学语文教师 | B138: 651123109022 | C138: 女 | D138: 104.5 | E138: 97.0 | F138: 100.0 | H138: 66.67 | I138: 9
A139: 小学语文教师 | B139: 651123110205 | C139: 女 | D139: 101.5 | E139: 96.5 | F139: 98.5 | H139: 65.67 | I139: 10
A140: 小学语文教师 | B140: 651123109960 | C140: 女 | D140: 88.0 | E140: 102.0 | F140: 96.4 | H140: 64.27 | I140: 11
A141: 小学语文教师 | B141: 651123109909 | C141: 女 | D141: 85.5 | E141: 102.0 | F141: 95.4 | H141: 63.60 | I141: 12
A142: 小学语文教师 | B142: 651123109359 | C142: 女 | D142: 111.5 | E142: 83.5 | F142: 94.7 | H142: 63.13 | I142: 13
A143: 小学语文教师 | B143: 651123108748 | C143: 女 | D143: 112.0 | E143: 80.5 | F143: 93.1 | H143: 62.07 | I143: 14
A144: 小学语文教师 | B144: 651123109486 | C144: 女 | D144: 112.5 | E144: 80.0 | F144: 93.0 | H144: 62.00 | I144: 15
A145: 小学语文教师 | B145: 651123106541 | C145: 女 | D145: 84.5 | E145: 95.5 | F145: 91.1 | H145: 60.73 | I145: 16
A146: 小学语文教师 | B146: 651123107301 | C146: 女 | D146: 98.5 | E146: 84.5 | F146: 90.1 | H146: 60.07 | I146: 17
A147: 小学语文教师 | B147: 651123108773 | C147: 女 | D147: 100.0 | E147: 83.5 | F147: 90.1 | H147: 60.07 | I147: 18
A148: 小学语文教师 | B148: 651123108030 | C148: 女 | D148: 83.0 | E148: 94.5 | F148: 89.9 | H148: 59.93 | I148: 19
A149: 小学语文教师 | B149: 651123108533 | C149: 女 | D149: 104.5 | E149: 78.5 | F149: 88.9 | H149: 59.27 | I149: 20
A150: 小学语文教师 | B150: 651123110583 | C150: 女 | D150: 83.0 | E150: 92.5 | F150: 88.7 | H150: 59.13 | I150: 21
A151: 小学语文教师 | B151: 651123107690 | C151: 女 | D151: 101.5 | E151: 79.0 | F151: 88.0 | H151: 58.67 | I151: 22
A152: 小学语文教师 | B152: 651123108235 | C152: 女 | D152: 111.0 | E152: 72.0 | F152: 87.6 | H152: 58.40 | I152: 23
A153: 小学语文教师 | B153: 651123108284 | C153: 女 | D153: 94.0 | E153: 83.0 | F153: 87.4 | H153: 58.27 | I153: 24
A154: 小学语文教师 | B154: 651123109349 | C154: 女 | D154: 82.0 | E154: 90.5 | F154: 87.1 | H154: 58.07 | I154: 25
A155: 小学语文教师 | B155: 651123107216 | C155: 女 | D155: 103.0 | E155: 76.5 | F155: 87.1 | H155: 58.07 | I155: 26
A156: 小学语文教师 | B156: 651123108124 | C156: 女 | D156: 96.5 | E156: 78.0 | F156: 85.4 | H156: 56.93 | I156: 27
A157: 小学语文教师 | B157: 651123107492 | C157: 女 | D157: 95.0 | E157: 78.0 | F157: 84.8 | H157: 56.53 | I157: 28
A158: 小学语文教师 | B158: 651123106684 | C158: 女 | D158: 98.0 | E158: 75.5 | F158: 84.5 | H158: 56.33 | I158: 29
A159: 小学语文教师 | B159: 651123107818 | C159: 女 | D159: 92.5 | E159: 79.0 | F159: 84.4 | H159: 56.27 | I159: 30
A160: 小学语文教师 | B160: 651123107651 | C160: 女 | D160: 90.0 | E160: 79.0 | F160: 83.4 | H160: 55.60 | I160: 31
A161: 小学语文教师 | B161: 651123107198 | C161: 女 | D161: 100.5 | E161: 70.0 | F161: 82.2 | H161: 54.80 | I161: 32
A162: 小学语文教师 | B162: 651123106947 | C162: 女 | D162: 103.5 | E162: 65.0 | F162: 80.4 | H162: 53.60 | I162: 33
A163: 小学语文教师 | B163: 651123110090 | C163: 女 | D163: 77.0 | E163: 80.0 | F163: 78.8 | H163: 52.53 | I163: 34
A164: 小学语文教师 | B164: 651123107126 | C164: 男 | D164: 73.0 | E164: 79.0 | F164: 76.6 | H164: 51.07 | I164: 35
A165: 小学语文教师 | B165: 651123109612 | C165: 女 | D165: 58.5 | E165: 79.0 | F165: 70.8 | H165: 47.20 | I165: 36
A166: 小学语文教师 | B166: 651123109903 | C166: 女 | D166: 51.5 | E166: 83.0 | F166: 70.4 | H166: 46.93 | I166: 37
A167: 小学语文教师 | B167: 651123110575 | C167: 女 | D167: 81.0 | E167: 61.5 | F167: 69.3 | H167: 46.20 | I167: 38
A168: 小学数学教师 | B168: 651223112040 | C168: 女 | D168: 119.5 | E168: 98.5 | F168: 106.9 | H168: =F168/1.5 -> 71.27 | I168: 1
A169: 小学数学教师 | B169: 651223110668 | C169: 女 | D169: 110.5 | E169: 97.0 | F169: 102.4 | H169: 68.27 | I169: 2
A170: 小学数学教师 | B170: 651223111292 | C170: 女 | D170: 95.5 | E170: 92.5 | F170: 93.7 | H170: 62.47 | I170: 3
A171: 小学数学教师 | B171: 651223113846 | C171: 女 | D171: 118.0 | E171: 76.5 | F171: 93.1 | H171: 62.07 | I171: 4
A172: 小学数学教师 | B172: 651223111196 | C172: 女 | D172: 98.0 | E172: 87.0 | F172: 91.4 | H172: 60.93 | I172: 5
A173: 小学数学教师 | B173: 651223110854 | C173: 女 | D173: 107.5 | E173: 78.5 | F173: 90.1 | H173: 60.07 | I173: 6
A174: 小学数学教师 | B174: 651223110847 | C174: 女 | D174: 106.0 | E174: 77.0 | F174: 88.6 | H174: 59.07 | I174: 7
A175: 小学数学教师 | B175: 651223113760 | C175: 女 | D175: 87.5 | E175: 87.0 | F175: 87.2 | H175: 58.13 | I175: 8
A176: 小学数学教师 | B176: 651223110871 | C176: 女 | D176: 112.5 | E176: 65.5 | F176: 84.3 | H176: 56.20 | I176: 9
A177: 小学数学教师 | B177: 651223111006 | C177: 女 | D177: 99.0 | E177: 73.0 | F177: 83.4 | H177: 55.60 | I177: 10
A178: 小学数学教师 | B178: 651223111141 | C178: 女 | D178: 96.0 | E178: 69.0 | F178: 79.8 | H178: 53.20 | I178: 11
A179: 小学数学教师 | B179: 651223113986 | C179: 女 | D179: 91.0 | E179: 71.0 | F179: 79.0 | H179: 52.67 | I179: 12
A180: 小学数学教师 | B180: 651223112868 | C180: 女 | D180: 78.5 | E180: 78.5 | F180: 78.5 | H180: 52.33 | I180: 13
A181: 小学数学教师 | B181: 651223113799 | C181: 男 | D181: 94.5 | E181: 64.0 | F181: 76.2 | H181: 50.80 | I181: 14
A182: 小学数学教师 | B182: 651223113325 | C182: 女 | D182: 83.5 | E182: 69.0 | F182: 74.8 | H182: 49.87 | I182: 15
A183: 小学数学教师 | B183: 651223113278 | C183: 女 | D183: 74.0 | E183: 73.0 | F183: 73.4 | H183: 48.93 | I183: 16
A184: 小学数学教师 | B184: 651223113869 | C184: 女 | D184: 67.0 | E184: 66.0 | F184: 66.4 | H184: 44.27 | I184: 17
A185: 小学英语教师 | B185: 651323114057 | C185: 女 | D185: 122.0 | E185: 110.0 | F185: 114.8 | H185: =F185/1.5 -> 76.53 | I185: 1
A186: 小学英语教师 | B186: 651323114245 | C186: 女 | D186: 126.0 | E186: 106.5 | F186: 114.3 | H186: 76.20 | I186: 2
A187: 小学英语教师 | B187: 651323115046 | C187: 女 | D187: 124.5 | E187: 103.5 | F187: 111.9 | H187: 74.60 | I187: 3
A188: 小学英语教师 | B188: 651323114580 | C188: 女 | D188: 122.5 | E188: 102.0 | F188: 110.2 | H188: 73.47 | I188: 4
A189: 小学英语教师 | B189: 651323115057 | C189: 女 | D189: 124.0 | E189: 101.0 | F189: 110.2 | H189: 73.47 | I189: 5
A190: 小学英语教师 | B190: 651323114063 | C190: 女 | D190: 121.0 | E190: 99.0 | F190: 107.8 | H190: 71.87 | I190: 6
A191: 小学英语教师 | B191: 651323114140 | C191: 女 | D191: 115.0 | E191: 97.0 | F191: 104.2 | H191: 69.47 | I191: 7
A192: 小学英语教师 | B192: 651323114840 | C192: 女 | D192: 106.0 | E192: 100.0 | F192: 102.4 | H192: 68.27 | I192: 8
A193: 小学英语教师 | B193: 651323114662 | C193: 女 | D193: 113.5 | E193: 95.0 | F193: 102.4 | H193: 68.27 | I193: 9
A194: 小学英语教师 | B194: 651323114572 | C194: 女 | D194: 108.0 | E194: 97.5 | F194: 101.7 | H194: 67.80 | I194: 10
A195: 小学英语教师 | B195: 651323114619 | C195: 女 | D195: 114.0 | E195: 91.5 | F195: 100.5 | H195: 67.00 | I195: 11
A196: 小学英语教师 | B196: 651323114830 | C196: 女 | D196: 86.0 | E196: 110.0 | F196: 100.4 | H196: 66.93 | I196: 12
A197: 小学英语教师 | B197: 651323114834 | C197: 女 | D197: 122.0 | E197: 86.0 | F197: 100.4 | H197: 66.93 | I197: 13
A198: 小学英语教师 | B198: 651323114907 | C198: 女 | D198: 112.0 | E198: 92.5 | F198: 100.3 | H198: 66.87 | I198: 14
A199: 小学英语教师 | B199: 651323114383 | C199: 女 | D199: 102.5 | E199: 98.0 | F199: 99.8 | H199: 66.53 | I199: 15
A200: 小学英语教师 | B200: 651323114242 | C200: 女 | D200: 110.0 | E200: 91.5 | F200: 98.9 | H200: 65.93 | I200: 16
... 160 more rows
